[Event "21st Bangkok CC Open 2024"]
[Site "Bangkok"]
[Date "2024.04.20"]
[Round "8.7"]
[White "Srihari L R"]
[Black "Ritviz, Parab"]
[Result "1-0"]
[ECO "D38"]
[WhiteElo "2482"]
[BlackElo "2346"]
[Annotator "TA"]
[PlyCount "73"]
[EventDate "2024.04.13"]
[EventType "swiss"]
[EventCountry "THA"]
[SourceTitle "playchess.com"]
[Source "ChessBase"]
[SourceQuality "1"]
[TimeControl "40/5400+30:1800+30"]

{[%evp 12,73,0,8,24,17,29,11,11,0,0,0,0,0,31,19,20,0,15,0,10,20,30,0,14,10,8,9,10,0,0,0,0,0,8,3,41,39,37,46,27,29,212,220,216,222,262,251,246,247,298,307,451,378,454,451,455,458,454,448,711,710,701,679]} 1. d4 {[%emt 0:00:03]} d5 {[%emt 0:11:03]} 2. c4 {[%emt 0:00:21]} e6 {[%emt 0:00:24]} 3. Nf3 {[%emt 0:01:52]} Nf6 {[%emt 0:04:08]} 4. Nc3 {[%emt 0:00:46]} Bb4 {[%emt 0:00:23]} 5. Qa4+ {[%emt 0:01:14]} Nc6 {[%emt 0:03:22]} 6. a3 {[%emt 0:00:13]} Bxc3+ {[%emt 0:05:31]} 7. bxc3 {[%emt 0:00:12]} O-O {[%emt 0:26:39]} 8. Bg5 {[%emt 0:04:48]} h6 {[%emt 0:04:17]} 9. Bh4 {[%emt 0:00:19]} Bd7 {[%emt 0:15:07][%cal Oc6d4] White must now prevent ...Nxd4! The position is equal.} 10. Qc2 {[%emt 0:06:07]} Na5 {[%emt 0:05:39]} 11. cxd5 {[%emt 0:12:18]} exd5 {[%emt 0:00:07]} 12. e3 {[%emt 0:00:05]} Rc8 {[%emt 0:03:38]} 13. Bd3 {[%emt 0:02:58]} c5 {[%emt 0:02:05]} 14. Qb1 {[%emt 0:14:56]} Rc6 {[%emt 0:06:05]} (14... g5 $5 15. Bg3 $8 Ne4 $11) 15. O-O {[%emt 0:05:17]} Rb6 {[%emt 0:01:42]} 16. Qe1 {[%emt 0:01:54]} c4 {[%emt 0:03:08]} 17. Bc2 {[%emt 0:00:15]} Qc8 {[%emt 0:00:02]} 18. Bxf6 {[%emt 0:03:35]} Rxf6 {[%emt 0:00:02]} 19. Ne5 {[%emt 0:00:10]} Bf5 {[%emt 0:00:14]} 20. Bxf5 {[%emt 0:00:49]} Qxf5 {[%emt 0:00:04]} 21. f3 {[%emt 0:00:07]} Re8 {[%emt 0:01:56]} 22. Qe2 {[%emt 0:05:55]} Nc6 {[%emt 0:04:27]} 23. e4 {[%emt 0:00:19]} Qc8 {[%emt 0:00:19]} 24. Ng4 {[%emt 0:03:14]} (24. exd5 Nxe5 25. dxe5 Qc5+ 26. Qf2 Qxf2+ 27. Kxf2 Rxe5) 24... Rg6 {[%emt 0:00:53]} 25. e5 $36 {[%emt 0:00:31][%mdl 2048] White has the initiative.} f6 {[%emt 0:00:17][%cal Bf7f6,Bf6e5][%mdl 32]} 26. Qc2 {[%emt 0:03:20]} Rxg4 {[%emt 0:00:14] Loses the game.} (26... Kf7 $1 $11) 27. fxg4 $18 {[%emt 0:00:34]} fxe5 {[%emt 0:01:23] [#]} 28. Qg6 $1 {[%emt 0:01:04]} Qd7 {[%emt 0:00:44] Against Rf7} 29. Rae1 {[%emt 0:01:05]} Re6 {[%emt 0:00:33]} 30. Qf5 {[%emt 0:00:31]} Qe8 {[%emt 0:00:29] Wards off Qf8+} 31. dxe5 {[%emt 0:00:47]} Nxe5 {[%emt 0:00:27] [#]} (31... b6 $142 32. Re3 Rxe5 33. Rxe5 (33. Rfe1 $2 Rxe3 34. Qxd5+ Kh7 $19) 33... Nxe5) 32. Re3 $1 {[%emt 0:00:31] Threatens to win with Rfe1.} g6 {[%emt 0:00:25]} 33. Qf4 {[%emt 0:00:49][%cal Of1e1] Rfe1! is the strong threat. White is clearly winning.} Nd7 {[%emt 0:00:29]} 34. Rxe6 {[%emt 0:01:03]} Qxe6 {[%emt 0:00:02]} 35. Qxh6 {[%emt 0:00:12]} Qxg4 {[%emt 0:00:38]} (35... b5 $142 36. Qd2 a6) 36. Qe3 {[%emt 0:00:19]} Qe4 {[%emt 0:01:01]} 37. Qxa7 {[%emt 0:00:36] Weighted Error Value: White=0.03 (flawless) /Black=0.28 (precise) .  Loses game:     	---       	Black=1      Mistake:       	---       	Black=2      Inaccurate:     	---       	Black=2      OK:         	White=19    	Black=14     Best:        	White=2     	---        Strong:       	White=1     	---} 1-0

[Event "21st Bangkok CC Open 2024"]
[Site "Bangkok"]
[Date "2024.04.20"]
[Round "8.8"]
[White "Quizon, Daniel"]
[Black "Manon, Reja Neer"]
[Result "0-1"]
[ECO "A36"]
[WhiteElo "2441"]
[BlackElo "2285"]
[Annotator "TA"]
[PlyCount "86"]
[EventDate "2024.04.13"]
[EventType "swiss"]
[EventCountry "THA"]
[SourceTitle "playchess.com"]
[Source "ChessBase"]
[SourceQuality "1"]
[TimeControl "40/5400+30:1800+30"]

{[%evp 12,86,3,0,27,14,38,16,16,20,26,29,33,29,18,13,13,15,41,35,45,45,38,47,78,37,109,0,0,0,0,-72,-37,-103,-92,-49,70,87,100,69,50,-187,-210,-210,-185,-204,-30,-37,-54,-47,-56,-110,-73,-76,-48,-40,-39,-46,-11,-34,-35,-408,-413,-974,-1048,-773,-809,-4610,-2650,-2423,-1730,-4910,-4610,-29988,-29989,-29995,-29996]} 1. c4 {[%emt 0:00:03]} Nf6 {[%emt 0:00:30]} 2. Nc3 {[%emt 0:00:30]} g6 {[%emt 0:05:15]} 3. e4 {[%emt 0:02:15]} d6 {[%emt 0:00:21]} 4. g3 {[%emt 0:00:34]} Bg7 {[%emt 0:00:45]} 5. Bg2 {[%emt 0:00:15]} c5 {[%emt 0:02:55]} 6. Nge2 {[%emt 0:01:27]} Nc6 {[%emt 0:06:05]} 7. d3 {[%emt 0:01:36]} Nd4 {[%emt 0:05:02]} 8. h3 {[%emt 0:01:08]} h5 {[%emt 0:13:39]} 9. Bg5 {[%emt 0:10:43]} Nh7 {[%emt 0:07:54] The position is equal.} 10. Be3 {[%emt 0:01:28]} e5 {[%emt 0:00:21]} 11. f4 {[%emt 0:06:50]} Be6 {[%emt 0:10:26]} 12. Rb1 {[%emt 0:15:06]} O-O {[%emt 0:07:31]} 13. O-O {[%emt 0:03:07]} Qd7 {[%emt 0:06:25]} 14. Kh2 {[%emt 0:02:31]} Rab8 {[%emt 0:03:38]} 15. b4 {[%emt 0:07:54]} b6 {[%emt 0:00:01]} 16. Nd5 {[%emt 0:04:56]} f5 {[%emt 0:04:25]} 17. fxe5 {[%emt 0:09:03] Black must now prevent bxc5.} dxe5 {[%emt 0:00:11]} 18. exf5 {[%emt 0:05:13]} gxf5 {[%emt 0:00:37]} ({Black should try} 18... Nxf5 $14 19. bxc5 Nxe3 20. Nxe3 bxc5) 19. Nxd4 {[%emt 0:03:29]} (19. bxc5 $16 {Threatens to win with Nxd4.} bxc5 20. Rxb8 Rxb8 21. Nxd4 cxd4 22. Bc1) 19... cxd4 $11 {[%emt 0:00:17]} 20. Bd2 {[%emt 0:00:01]} h4 {[%emt 0:10:06]} 21. gxh4 {[%emt 0:03:26]} (21. g4 $11 {remains equal.}) 21... b5 $1 $17 {[%emt 0:00:00]} 22. h5 {[%emt 0:04:45]} (22. Rb3 $15) 22... bxc4 {[%emt 0:00:07]} 23. dxc4 {[%emt 0:00:06]} f4 {[%emt 0:00:47] [#]} ({Better is} 23... Kh8 $15) 24. h6 $1 $14 {[%emt 0:05:17]} Bxh6 {[%emt 0:00:17]} 25. Qh5 {[%emt 0:00:01]} Qg7 {[%emt 0:02:06] [#]} 26. Ne7+ $2 {[%emt 0:04:44]} Qxe7 $19 {[%emt 0:00:43]} 27. Qxh6 {[%emt 0:00:00]} Rf6 $1 {[%emt 0:05:31]} (27... Bxc4 28. Rg1 Kh8 (28... Bxa2 $2 29. Bd5+ Kh8 30. Bxa2 $18) 29. Be4 $11) 28. Qh4 {[%emt 0:00:02] [#] And now Be4 would win.} Qg7 $2 {[%emt 0:03:18]} (28... Bxc4 29. Rg1 Kh8 (29... Bxa2 $2 30. Bd5+ Kh8 31. Bxa2 $18) 30. Be4 $16) (28... Kh8 $1 $19 {[%cal Oe7g7] aiming for ...Qg7!} 29. Rbe1 (29. Be4 $2 Qg7 $19) 29... Qg7 (29... Bxc4 30. Rxf4 Qd6 31. Rxf6 $16)) 29. Bd5 $1 $11 {[%emt 0:01:32] Rg1 is the strong threat.} Kh8 {[%emt 0:03:23]} 30. Bxe6 {[%emt 0:05:36]} Rxe6 {[%emt 0:00:06]} 31. Rg1 {[%emt 0:00:07]} Rh6 {[%emt 0:02:00] The board is on fire. Black is more active.} 32. Rxg7 {[%emt 0:00:57]} Rxh4 {[%emt 0:00:02]} 33. Rbg1 {[%emt 0:01:09][%cal Og7g6]} Nf6 $36 {[%emt 0:01:30][%mdl 2048] Black is more active.} (33... Rf8 $5 34. Be1 $8 (34. Rxa7 Rh5 $17) 34... Rh6 35. Rxa7 e4 $11) 34. Rxa7 {[%emt 0:00:48]} Rh7 {[%emt 0:00:40]} 35. Rxh7+ {[%emt 0:00:45]} Kxh7 {[%emt 0:00:00][%mdl 4096] Endgame. KRB-KRN} 36. Re1 {[%emt 0:00:01][%mdl 8192] [#] Against Ne4} (36. b5 $15) 36... Ra8 $1 $19 {[%emt 0:00:42]} 37. Ra1 {[%emt 0:01:02]} ({Reject} 37. Rxe5 Rxa2 38. Re2 d3 $19) (37. a4 $142 Rxa4 38. Kg2 (38. Rxe5 $2 {is the wrong capture.} Ra2 $19)) 37... Ne4 {[%emt 0:00:21]} 38. Be1 {[%emt 0:00:03]} d3 {[%emt 0:00:34] Strongly threatening ...f3.} 39. c5 {[%emt 0:00:49]} d2 {[%emt 0:00:44]} 40. Bxd2 {[%emt 0:00:01]} Nxd2 {[%emt 0:00:01]} 41. b5 {[%emt 0:30:41]} f3 {[%emt 0:11:15] ( -> ...Rg8)} 42. c6 {[%emt 0:00:00]} Rg8 {[%emt 0:00:39]} 43. Kh1 {[%emt 0:00:00]} f2 {[%emt 0:00:36] Weighted Error Value: White=0.71/Black=0.28 (precise) .  Loses game:     	White=2     	---        Missed win:     	---       	Black=1      Mistake:       	White=4     	Black=2      Inaccurate:     	White=2     	Black=4      OK:         	White=12    	Black=8      Best:        	White=2     	Black=3      Strong:       	White=1     	Black=2      Brilliant:      	White=1     	---} 0-1

[Event "21st Bangkok CC Open 2024"]
[Site "Bangkok"]
[Date "2024.04.20"]
[Round "8.9"]
[White "Cao, Qingfeng"]
[Black "Morris, James"]
[Result "0-1"]
[ECO "E11"]
[WhiteElo "2038"]
[BlackElo "2432"]
[Annotator "TA"]
[PlyCount "104"]
[EventDate "2024.04.13"]
[EventType "swiss"]
[EventCountry "THA"]
[SourceTitle "playchess.com"]
[Source "ChessBase"]
[SourceQuality "1"]
[TimeControl "40/5400+30:1800+30"]

{[%evp 11,104,24,16,18,25,20,24,24,38,21,42,11,39,8,20,12,6,0,7,0,8,0,0,0,0,0,0,-8,-19,-7,-20,-5,-7,-8,0,-12,-9,-11,-5,-17,-16,-21,-12,-9,-8,-24,-18,-17,0,0,0,-6,0,0,0,-2,0,-70,-62,-62,-70,-70,-62,-62,-62,-73,-66,-66,-62,-52,-52,-52,-59,-59,-59,-881,-757,-740,-727,-709,-647,-29978,-29979,-29979,-29979,-29981,-29982,-29982,-29983,-29983,-29981,-29984,-29985,-29985,-29986]} 1. d4 {[%emt 0:00:03]} Nf6 {[%emt 0:00:08]} 2. c4 {[%emt 0:00:06]} e6 {[%emt 0:00:06]} 3. Nf3 {[%emt 0:00:06]} Bb4+ {[%emt 0:00:30]} 4. Nbd2 {[%emt 0:01:14]} b6 {[%emt 0:00:07]} 5. a3 {[%emt 0:00:46]} Bxd2+ {[%emt 0:00:08]} 6. Bxd2 {[%emt 0:05:47]} Bb7 {[%emt 0:00:11]} 7. e3 {[%emt 0:00:50]} d6 {[%emt 0:00:56]} 8. Be2 {[%emt 0:07:41]} Ne4 {[%emt 0:00:12]} 9. O-O {[%emt 0:02:41] White has an edge.} Nd7 {[%emt 0:01:25]} 10. b4 {[%emt 0:03:31]} O-O {[%emt 0:01:55]} 11. Qc2 {[%emt 0:05:07]} Qe7 {[%emt 0:10:40]} 12. Rab1 {[%emt 0:06:08]} c5 {[%emt 0:14:48]} 13. Rfd1 {[%emt 0:00:53]} Nxd2 {[%emt 0:01:46]} 14. Qxd2 {[%emt 0:03:41] And now dxc5 would win.} Nf6 {[%emt 0:01:38]} 15. a4 {[%emt 0:07:35][%cal Ba3a4,Ba4a5][%mdl 32]} Rac8 {[%emt 0:05:02]} 16. bxc5 {[%emt 0:07:58]} dxc5 {[%emt 0:05:27]} 17. a5 {[%emt 0:04:44]} Bxf3 {[%emt 0:14:45]} 18. Bxf3 {[%emt 0:01:18]} cxd4 {[%emt 0:01:00]} 19. exd4 {[%emt 0:06:29]} Rxc4 {[%emt 0:01:12]} 20. axb6 {[%emt 0:00:09]} axb6 {[%emt 0:00:04]} 21. Rxb6 {[%emt 0:00:08]} Rd8 {[%emt 0:01:49]} 22. Qb2 {[%emt 0:02:30]} h6 {[%emt 0:05:04]} 23. h3 {[%emt 0:01:39]} Qc7 {[%emt 0:00:42]} 24. Rb4 {[%emt 0:06:04]} Rc2 {[%emt 0:02:28]} 25. Qb3 {[%emt 0:03:04]} Rc3 {[%emt 0:00:49]} 26. Qb2 {[%emt 0:01:27]} Rc8 {[%emt 0:01:38]} 27. Qd2 {[%emt 0:02:37]} Qd6 {[%emt 0:07:23]} 28. Rb7 {[%emt 0:00:49]} Rc2 {[%emt 0:02:19]} 29. Qe3 {[%emt 0:00:40]} Rd8 {[%emt 0:04:35]} 30. Qb3 {[%emt 0:04:04] Against Rc4} Rcc8 {[%emt 0:04:02]} 31. Rb5 {[%emt 0:03:31]} Rb8 {[%emt 0:01:48]} 32. Rxb8 {[%emt 0:03:14]} Rxb8 {[%emt 0:00:48]} 33. Qc3 {[%emt 0:00:12]} Rd8 {[%emt 0:01:35]} 34. Qc5 {[%emt 0:02:23]} (34. g3 $11) 34... Qxc5 $1 $15 {[%emt 0:02:08]} 35. dxc5 {[%emt 0:00:02]} Rxd1+ {[%emt 0:00:15]} 36. Bxd1 {[%emt 0:00:01][%mdl 4096] Endgame. KB-KN} Kf8 {[%emt 0:00:01]} 37. f4 {[%emt 0:04:54]} Ke7 {[%emt 0:02:45]} 38. Bf3 {[%emt 0:00:44]} Nd7 {[%emt 0:01:08]} 39. c6 {[%emt 0:00:05]} Nb6 {[%emt 0:00:05]} 40. Kf2 {[%emt 0:03:39]} Kd6 {[%emt 0:00:07]} 41. g4 {[%emt 0:19:22]} Nd5 {[%emt 0:06:23]} 42. f5 {[%emt 0:03:08]} Kxc6 {[%emt 0:00:09] aiming for ...Kc5.} 43. h4 $2 {[%emt 0:00:41][%mdl 8192] This move loses the game for White.} (43. fxe6 $15 fxe6 44. g5) 43... exf5 $19 {[%emt 0:07:04]} 44. gxf5 {[%emt 0:00:02] [#]} Kd6 $1 {[%emt 0:00:04]} 45. Kg3 {[%emt 0:01:08] [#]} Ke5 $1 {[%emt 0:00:39]} 46. Bxd5 {[%emt 0:02:06]} Kxd5 {[%emt 0:00:03] K3P-KPP. Black mates.} 47. Kf4 {[%emt 0:00:27]} Kd4 {[%emt 0:00:57]} 48. Kg4 {[%emt 0:01:59]} Ke5 {[%emt 0:00:17]} 49. Kh5 {[%emt 0:00:09]} Kf4 {[%emt 0:00:20]} 50. f6 {[%emt 0:00:06]} gxf6 {[%emt 0:00:02]} 51. Kxh6 {[%emt 0:00:06]} Kg4 {[%emt 0:00:04]} 52. Kg7 {[%emt 0:00:12]} f5 {[%emt 0:00:03] Weighted Error Value: White=0.36/Black=0.04 (flawless) .  Loses game:     	White=1     	---        Mistake:       	White=1     	---        Inaccurate:     	White=2     	Black=1      OK:         	White=15    	Black=13     Best:        	White=1     	Black=1      Strong:       	---       	Black=1} ({Inferior is} 52... Kxh4 53. Kxf6 Kh5 54. Kxf7 $11) 0-1

[Event "21st Bangkok CC Open 2024"]
[Site "Bangkok"]
[Date "2024.04.20"]
[Round "8.10"]
[White "Sek, Konstantin"]
[Black "Peng, Xiongjian"]
[Result "*"]
[ECO "C01"]
[WhiteElo "2397"]
[BlackElo "2521"]
[Annotator "TA"]
[PlyCount "20"]
[EventDate "2024.04.13"]
[EventType "swiss"]
[EventCountry "THA"]
[SourceTitle "playchess.com"]
[Source "ChessBase"]
[SourceQuality "1"]
[TimeControl "40/5400+30:1800+30"]

{[%evp 12,20,22,18,22,6,0,3,3,-18,0]} 1. e4 {[%emt 0:00:01]} e6 {[%emt 0:00:05]} 2. d4 {[%emt 0:00:23]} d5 {[%emt 0:00:09]} 3. exd5 {[%emt 0:04:42]} exd5 {[%emt 0:00:13]} 4. Nf3 {[%emt 0:00:05]} Nc6 {[%emt 0:02:24]} 5. c3 {[%emt 0:01:39]} Bd6 {[%emt 0:00:36]} 6. Bd3 {[%emt 0:00:15]} Bg4 {[%emt 0:00:24][%cal Bc8g4,Bg4h5,Bh5g6][%mdl 32]} 7. h3 {[%emt 0:01:21] The position is equal.} Bh5 {[%emt 0:00:38]} 8. Be3 {[%emt 0:00:10]} Nge7 {[%emt 0:02:14]} 9. Nbd2 {[%emt 0:00:24]} Qd7 {[%emt 0:00:37]} 10. Qc2 {[%emt 0:00:24]} Bg6 {[%emt 0:05:09] Not much happened in this game.   Weighted Error Value: White=0.10 (very precise) /Black=0.00 (flawless) .  OK:         	---       	Black=1} *

[Event "21st Bangkok CC Open 2024"]
[Site "Bangkok"]
[Date "2024.04.21"]
[Round "9.1"]
[White "Makhnev, Denis"]
[Black "Bernadskiy, Vitaliy"]
[Result "1/2-1/2"]
[ECO "D80"]
[WhiteElo "2516"]
[BlackElo "2561"]
[Annotator "TA"]
[PlyCount "26"]
[EventDate "2024.04.13"]
[EventType "swiss"]
[EventCountry "THA"]
[SourceTitle "playchess.com"]
[Source "ChessBase"]
[SourceQuality "1"]
[TimeControl "40/5400+30:1800+30"]

{[%evp 21,26,10,16,16,29,0,8]} 1. d4 {[%emt 0:06:40]} Nf6 {[%emt 0:00:02]} 2. c4 {[%emt 0:00:07]} g6 {[%emt 0:00:04]} 3. Nc3 {[%emt 0:00:05]} d5 {[%emt 0:00:05]} 4. Bg5 {[%emt 0:00:06]} Ne4 {[%emt 0:01:17]} 5. Bf4 {[%emt 0:00:07]} Nxc3 {[%emt 0:01:06]} 6. bxc3 {[%emt 0:00:07]} Bg7 {[%emt 0:00:39]} 7. e3 {[%emt 0:02:23]} O-O {[%emt 0:00:19]} 8. Nf3 {[%emt 0:00:34]} c5 {[%emt 0:00:22]} 9. cxd5 {[%emt 0:20:26]} cxd4 {[%emt 0:00:22]} 10. cxd4 {[%emt 0:00:07]} Qxd5 {[%emt 0:00:04]} 11. Be2 {[%emt 0:00:23]} Nc6 {[%emt 0:07:34]} 12. O-O {[%emt 0:00:50]} Bf5 {[%emt 0:00:08]} 13. Bg3 {[%emt 0:08:31]} Rac8 {[%emt 1:24:58] A rather calm draw.   Weighted Error Value: White=0.14 (very precise) /Black=0.09 (flawless) .  OK:         	---       	Black=1} 1/2-1/2

[Event "21st Bangkok CC Open 2024"]
[Site "Bangkok"]
[Date "2024.04.21"]
[Round "9.2"]
[White "Manon, Reja Neer"]
[Black "Mitrabha, Guha"]
[Result "0-1"]
[ECO "C15"]
[WhiteElo "2285"]
[BlackElo "2537"]
[Annotator "TA"]
[PlyCount "98"]
[EventDate "2024.04.13"]
[EventType "swiss"]
[EventCountry "THA"]
[SourceTitle "playchess.com"]
[Source "ChessBase"]
[SourceQuality "1"]
[TimeControl "40/5400+30:1800+30"]

{[%evp 22,98,0,11,21,7,0,0,60,49,20,0,42,16,68,65,62,76,72,75,144,68,55,0,0,-58,0,-60,-26,-106,-122,-131,-143,-143,-122,-430,-431,-447,-447,-453,-452,-622,-519,-490,-352,-862,-353,-735,-735,-683,-554,-548,-525,-512,-250,-254,0,-434,0,-605,-573,-688,-681,-691,-678,-627,-607,-691,-429,-625,-623,-844,-837,-779,-766,-865,-865,-865,-835]} 1. e4 {[%emt 0:00:04]} e6 {[%emt 0:16:06]} 2. d4 {[%emt 0:00:06]} d5 {[%emt 0:00:09]} 3. Nc3 {[%emt 0:00:03]} Bb4 {[%emt 0:00:10]} 4. Nge2 {[%emt 0:00:01]} Nc6 {[%emt 0:00:10]} 5. a3 {[%emt 0:00:04]} Ba5 {[%emt 0:00:04]} 6. b4 {[%emt 0:00:04]} Bb6 {[%emt 0:00:05]} 7. Bb2 {[%emt 0:00:01] C15: French: 3 Nc3 Bb4: Unusual White 4th moves.} Nge7 {[%emt 0:00:07]} 8. Qd2 {[%emt 0:00:37]} O-O {[%emt 0:00:13]} 9. Na4 {[%emt 0:00:13]} dxe4 {[%emt 0:05:39]} 10. c4 {[%emt 0:00:01]} a6 {[%emt 0:00:07]} 11. O-O-O {[%emt 0:04:48]} Nf5 $146 {[%emt 0:09:02]} ({Predecessor:} 11... Bd7 12. Nxb6 cxb6 13. Nc3 b5 14. d5 exd5 15. Nxd5 Nxd5 16. Qxd5 Bg4 17. f3 exf3 18. gxf3 Qxd5 19. cxd5 Bxf3 {0-1 Kaczmarczyk,D (2487)-Wyss,J (2220) SUI-ch op 122nd 2023 (3)}) 12. Nxb6 {[%emt 0:26:44]} cxb6 {[%emt 0:00:11]} 13. Ng3 {[%emt 0:00:09]} Nce7 {[%emt 0:22:52]} 14. Nxe4 {[%emt 0:09:40]} Bd7 {[%emt 0:00:31]} (14... b5 $11) 15. g4 {[%emt 0:01:37]} Nh4 $1 {[%emt 0:02:18]} 16. Bd3 {[%emt 0:13:42]} (16. Qc3 {keeps more tension.} Nd5 17. Qg3 f5 18. Nd2) 16... Neg6 {[%emt 0:02:33]} 17. Kb1 {[%emt 0:10:20]} e5 {[%emt 0:11:44]} (17... b5 $11) 18. dxe5 $14 {[%emt 0:29:55]} Bxg4 {[%emt 0:00:35]} 19. f4 {[%emt 0:00:33]} Bxd1 {[%emt 0:04:08]} 20. Rxd1 {[%emt 0:00:01]} Qe7 {[%emt 0:02:43]} (20... Nf5 $142) 21. Qf2 {[%emt 0:01:22]} ({White should play} 21. Nd6 $16) 21... Nf5 $14 {[%emt 0:04:27]} 22. Nc3 {[%emt 0:00:48]} (22. Nf6+ $14 gxf6 23. Bxf5 fxe5 24. fxe5 (24. Qxb6 Nxf4 25. Qh6 Ng6 $15)) 22... Qh4 {[%emt 0:01:26]} 23. Qg1 {[%emt 0:00:35]} (23. Qf3 $11 Nge7 24. Rg1 (24. Qxb7 Qxf4 25. Qe4 Qxe4 $11)) 23... Qh5 {[%emt 0:04:33]} (23... Nfe7 $15 24. Qxb6 Rad8 (24... Qxh2 25. Qxb7 Qxf4 26. Qh1 $19) (24... Nxf4 25. Bc2 $15) (24... Qxf4 25. Qxb7 Qxh2 26. Ne2 $17)) 24. Nd5 {[%emt 0:00:30]} ({Better is} 24. Qxb6 $11 a5 25. Qf2 axb4 26. axb4) 24... Rad8 {[%emt 0:00:01]} 25. Ka2 {[%emt 0:00:30] [#]} (25. Nxb6 $2 Nxf4 26. Bc2 Ne2 $19) (25. Bc2 $11) 25... b5 $1 $17 {[%emt 0:00:42]} 26. e6 {[%emt 0:00:30]} fxe6 {[%emt 0:05:21]} 27. Bxf5 {[%emt 0:00:24]} exf5 {[%emt 0:00:09]} (27... Rxf5 $2 28. Ne7+ Kf7 29. Rxd8 $18) 28. Qe1 $2 {[%emt 0:00:35][%mdl 8192]} (28. Qd4 $17 Qh6 (28... Qxh2 29. Qxg7#) 29. Qb6) 28... Kh8 $19 {[%emt 0:01:49]} (28... Qxh2 29. Qc3 Rf7 (29... Nxf4 30. Qxg7#) 30. Ne7+ Rxe7 (30... Nxe7 31. Rxd8+ Rf8 32. Qxg7#) 31. Rxd8+ Nf8 32. Re8 $17) (28... bxc4 29. Nf6+ gxf6 (29... Rxf6 $2 30. Rxd8+ Nf8 31. Bxf6 $18) 30. Qe6+ Rf7 (30... Kg7 31. Rxd8 Qxh2 32. Rd7+ Kh6 33. Qxc4 $11) 31. Rxd8+ Nf8 32. Qxc4 Qxh2 33. Rd5 $11) 29. Qc3 {[%emt 0:00:22]} Rf7 {[%emt 0:01:15]} (29... Qxd1 30. Qxg7#) 30. Rd2 {[%emt 0:00:23]} Qh4 {[%emt 0:00:28]} 31. cxb5 {[%emt 0:00:45]} axb5 {[%emt 0:00:58]} (31... Nxf4 32. Nxf4 Rxd2 33. Qxd2 axb5 34. Qe2 $14) 32. Qe3 {[%emt 0:00:30]} Nf8 {[%emt 0:01:32]} 33. Rg2 $2 {[%emt 0:00:28]} (33. Qe5) 33... Qh6 {[%emt 0:00:56]} (33... Rxd5 $142 34. Qf3 Qd8) 34. Rxg7 $2 {[%emt 0:00:30]} (34. Qe5) 34... Rxg7 $19 {[%emt 0:00:54]} 35. Qe7 {[%emt 0:00:01]} Ra8 {[%emt 0:00:51]} (35... Rxd5 36. Qxf8#) 36. Qxb7 {[%emt 0:00:43]} Rd8 {[%emt 0:01:05]} 37. Qe7 {[%emt 0:00:10]} Rb8 {[%emt 0:01:30]} (37... Rxd5 38. Qxf8#) (37... Rc8 $142 {[%cal Oh6g6] And now ...Qg6! would win.} 38. a4 bxa4) 38. Qc7 $19 {[%emt 0:00:37] [#]} Ra8 $2 {[%emt 0:00:30]} (38... Kg8 $1 39. Qxb8 Qe6 (39... Qc6 40. Nf6+ Kf7 41. Qa7+ Kg6 42. Qg1+ Kf7 43. Qa7+ Kg6 44. Qg1+ Kf7 45. Qa7+ $11)) 39. Qb7 $19 {[%emt 0:00:23]} Rd8 {[%emt 0:00:01]} 40. Qe7 $1 {[%emt 0:00:53]} Rc8 {[%emt 0:00:00]} ({And not} 40... Rxd5 41. Qxf8#) 41. a4 {[%emt 0:17:18]} bxa4 {[%emt 0:00:00]} 42. b5 {[%emt 0:01:52]} a3 {[%emt 0:00:00]} 43. Kxa3 {[%emt 0:01:28]} Qg6 {[%emt 0:04:08]} 44. b6 {[%emt 0:01:47]} Ra8+ {[%emt 0:00:27]} 45. Kb3 {[%emt 0:07:34]} (45. Kb4 $142 Qg2 46. Bxg7+ Qxg7 47. Kb5 (47. Qxg7+ $2 Kxg7 48. Kc5 Ra2 $19)) 45... Qg2 $19 {[%emt 0:01:04]} 46. Qe5 {[%emt 0:02:36]} Nd7 {[%emt 0:02:45]} 47. Qd4 {[%emt 0:00:41]} Rb8 {[%emt 0:00:22]} 48. Ne3 {[%emt 0:00:31]} Rxb6+ {[%emt 0:01:09]} 49. Qxb6 {[%emt 0:00:44]} Qxb2+ {[%emt 0:00:02]} ({Inferior is} 49... Qxh2 50. Qd8+) 0-1